Posting Date,Expenditure Area,Supplier Name,Amount,Reason for expense,Expense Type
13/08/2021,Culture & Environment Services,Agri-Hire Ltd,231.00,Hyraulic oil for Batwings,Materials and Supplies - Miscellaneous
13/08/2021,Culture & Environment Services,Agri-Hire Ltd,11.52,Nuts/Bolts - CHANTRY HUB,Materials and Supplies - Miscellaneous
11/08/2021,Culture & Environment Services,Amazon.Co.Uk,11.25,Tape Dispensers - CCP,Stationery
18/08/2021,Culture & Environment Services,Amznmktplace,26.97,TABLET LEADS,Computer Consumables and other Minor IT costs
13/08/2021,Culture & Environment Services,Amznmktplace,52.50,TAX DISC HOLDERS,Direct Transport Costs
19/05/2021,Culture & Environment Services,Amznmktplace,126.28,Cellar Racking,Equipment / Furniture / Materials
21/05/2021,Culture & Environment Services,Amznmktplace,128.23,Cellar Racking,Equipment / Furniture / Materials
12/07/2021,Culture & Environment Services,Amznmktplace,26.63,Red Gaffer Tape,Equipment / Furniture / Materials
02/08/2021,Culture & Environment Services,Amznmktplace,14.32,New cobweb dusters for crown car park,Equipment / Furniture / Materials
05/08/2021,Culture & Environment Services,Amznmktplace,6.66,Adhesive Pads,Equipment / Furniture / Materials
05/05/2021,Culture & Environment Services,Amznmktplace,82.40,Rubber Matting,Fixtures & Fittings
01/07/2021,Culture & Environment Services,Amznmktplace,28.32,Frames for Signage,Fixtures & Fittings
03/08/2021,Culture & Environment Services,Amznmktplace,241.66,Projector Lense,Fixtures & Fittings
28/07/2021,Culture & Environment Services,Amznmktplace,33.63,3 x Heavy duty padlocks,Materials and Supplies - Miscellaneous
19/08/2021,Culture & Environment Services,Amznmktplace,12.81,Stationery - CHRISTCHURCH HUB,Stationery
18/08/2021,Culture & Environment Services,Amznmktplace,19.98,PHONE/TABLET CASE,Telecommunication Costs - Mobiles
03/05/2021,Culture & Environment Services,Amznmktplace Amazon.Co.Uk,139.02,Racking for Publicity store,Fixtures & Fittings
11/08/2021,Culture & Environment Services,Asda Superstore,6.67,Batteries for Play board - PLAY AREA INSPECTOR,Equipment / Furniture / Materials
05/08/2021,Culture & Environment Services,B & Q 1315,93.83,Paint for NHS signage,Equipment / Furniture / Materials
17/08/2021,Culture & Environment Services,B & Q 1315,25.67,Sand - Maryon Road Path repair,Equipment / Furniture / Materials
19/08/2021,Culture & Environment Services,B & Q 1315,30.00,SkateSuffolk event materials,Miscellaneous Stock  - Purchases
24/08/2021,Culture & Environment Services,B & Q 1315,16.37,Postcrete - LANDSCAPE TEAM,Miscellaneous Stock  - Purchases
25/08/2021,Culture & Environment Services,B & Q 1315,47.08,Various tools/materials - LANDSCAPE TEAM,Miscellaneous Stock  - Purchases
22/07/2021,Culture & Environment Services,B&m 591 - Carr Road,6.67,Padlocks x2,Fixtures & Fittings
21/07/2021,Culture & Environment Services,Booker Limited Ipswich,14.34,Water for refuse crews,Materials and Supplies - Miscellaneous
11/08/2021,Culture & Environment Services,Booker Limited Ipswich,34.33,"Milk, coffee, tea & sugar for Waste Services",Materials and Supplies - Miscellaneous
17/08/2021,Culture & Environment Services,Booker Limited Ipswich,9.99,Toilet Roll Holder - CHRISTCHURCH HUB,Premises Costs - Miscellaneous
05/08/2021,Culture & Environment Services,Bourne Bridge Svs Stn,14.16,OIL - PLAY AREA INSPECTOR,Parks Vehicle Costs
30/07/2021,Culture & Environment Services,Bunzl Cleaning & Hygie,66.34,"J Cloths, Bactericidal Cleaner Apron roll blue",Materials and Supplies - Miscellaneous
19/05/2021,Culture & Environment Services,Castle Industrial,41.40,Face Shields,Equipment / Furniture / Materials
28/07/2021,Culture & Environment Services,Coastal Building Supplie,339.62,Treated fencing posts/postmix - ORWELL PATH INSTALL,Miscellaneous Stock  - Purchases
30/07/2021,Culture & Environment Services,Coastal Building Supplie,17.38,Timber Treatment - ORWELL PATH INSTALL,Miscellaneous Stock  - Purchases
30/07/2021,Culture & Environment Services,Coastal Building Supplie,87.85,Treated Timber - ORFWELL PATH INSTALL,Miscellaneous Stock  - Purchases
26/08/2021,Culture & Environment Services,Coastal Building Supplie,240.80,CEMENT - LANDSCAPE TEAM,Miscellaneous Stock  - Purchases
15/07/2021,Culture & Environment Services,Collier & Catchpole,245.00,Membrane - ORWELL PATH INSTALL,Miscellaneous Stock  - Purchases
18/08/2021,Culture & Environment Services,Collier & Catchpole,245.00,Geotextile Multitrack - ORWELL COUNTRY PARK,Miscellaneous Stock  - Purchases
28/07/2021,Culture & Environment Services,Cpw Locksmiths And Securi,6.25,key cutting for bin stores,Materials and Supplies - Miscellaneous
09/08/2021,Culture & Environment Services,Dvla Vehicle Tax,277.50,VEHICLE TAX FOR AU58 VPE,Direct Transport Costs
09/08/2021,Culture & Environment Services,Dvla Vehicle Tax,302.50,VEHICLE TAX FOR AY64 LRZ,Direct Transport Costs
16/08/2021,Culture & Environment Services,Ebay O*03-07471-36493,31.65,Heavy Wear Cable Run,Equipment / Furniture / Materials
10/08/2021,Culture & Environment Services,Elmers Hardware,43.56,various Tools (fork/saw) - CHANTRY HUB,Materials and Supplies - Miscellaneous
06/07/2021,Culture & Environment Services,Greater Anglia Trains,22.92,Train Ticket - Norwich Cultural Board,Miscellaneous Expenses
18/08/2021,Culture & Environment Services,Gripfixings Ipswich,119.57,Material/fixing - BENCH INSTALLATION CCP,Equipment / Furniture / Materials
05/08/2021,Culture & Environment Services,Groundsman Tools And Supp,101.28,6 x Bellota Pro Pruning Secateurs,Materials and Supplies - Miscellaneous
30/08/2021,Culture & Environment Services,Halfords 0393,8.32,Ad Blue - VEHICLE MAINTANANCE,Parks Vehicle Costs
12/07/2021,Culture & Environment Services,Hobbycraft,20.08,Red Gaffer Tape,Equipment / Furniture / Materials
05/08/2021,Culture & Environment Services,Honey Bros,729.62,Arb equipment purchases,Materials and Supplies - Miscellaneous
09/08/2021,Culture & Environment Services,Indespension,4.66,Lead for trailer lights - CCP,Direct Transport Costs
12/08/2021,Culture & Environment Services,Indespension,22.97,cable for trailer,Equipment / Furniture / Materials
09/08/2021,Culture & Environment Services,Indespension,36.42,Triplelock Keys x 2,Materials and Supplies - Miscellaneous
26/08/2021,Culture & Environment Services,Indespension,22.97,Lead for the trailer - LANDSCAPE TEAM,Miscellaneous Stock  - Purchases
28/07/2021,Culture & Environment Services,Jewson Ltd,299.61,Drain pipe - ORWELL PATH INSTALL,Miscellaneous Stock  - Purchases
26/08/2021,Culture & Environment Services,Kings,5.00,Cylinder Key cut x 1,Materials and Supplies - Miscellaneous
26/07/2021,Culture & Environment Services,Lumberjacks,44.31,Fencing for CHANTRY HUB,Materials and Supplies - Miscellaneous
02/08/2021,Culture & Environment Services,Lumberjacks,28.30,Post mix - CHANTRY HUB,Materials and Supplies - Miscellaneous
05/08/2021,Culture & Environment Services,Lumberjacks,42.40,Fencing for CHANTRY HUB,Materials and Supplies - Miscellaneous
06/08/2021,Culture & Environment Services,Lumberjacks,51.80,Fencing for CHANTRY HUB,Materials and Supplies - Miscellaneous
14/07/2021,Culture & Environment Services,Lumberjacks,683.43,Wood edging & pegs - ORWELL PATH INSTALL,Miscellaneous Stock  - Purchases
14/07/2021,Culture & Environment Services,Lumberjacks,6.98,Wood stain - CCP BENCHES,Miscellaneous Stock  - Purchases
15/07/2021,Culture & Environment Services,Lumberjacks,26.97,Timber - ORWELL PATH INSTALL,Miscellaneous Stock  - Purchases
30/08/2021,Culture & Environment Services,Ma Hubbards Catering,24.00,Staff Refreshments on Event Site,Miscellaneous Expenses
10/05/2021,Culture & Environment Services,Makro Self Service Ipswic,82.79,Catering,Catering/Beverages
02/06/2021,Culture & Environment Services,Makro Self Service Ipswic,88.29,Catering,Catering/Beverages
02/08/2021,Culture & Environment Services,Makro Self Service Ipswic,83.38,Stock,Catering/Beverages
18/08/2021,Culture & Environment Services,Mpd - Ipswich 03,8.97,Cable ties for litter bins,Equipment / Furniture / Materials
18/08/2021,Culture & Environment Services,Orwell Motor Cycles Lt,44.99,Crash helmet for quad bike,Equipment / Furniture / Materials
12/08/2021,Culture & Environment Services,P Tuckwell Ltd,56.72,Filler Caps x 2,Materials and Supplies - Miscellaneous
18/05/2021,Culture & Environment Services,Paypal,44.13,PPE,Clothing / Uniform & Laundry
28/06/2021,Culture & Environment Services,Paypal,140.77,Uniform,Clothing / Uniform & Laundry
15/07/2021,Culture & Environment Services,Paypal,178.58,Uniform,Clothing / Uniform & Laundry
19/07/2021,Culture & Environment Services,Paypal,101.42,Safety Books PPE,Clothing / Uniform & Laundry
29/07/2021,Culture & Environment Services,Paypal,128.27,Uniform,Clothing / Uniform & Laundry
18/08/2021,Culture & Environment Services,Paypal,49.98,PPE trousers,Clothing / Uniform & Laundry
24/05/2021,Culture & Environment Services,Paypal,100.00,Storage Boxes,Equipment / Furniture / Materials
08/06/2021,Culture & Environment Services,Paypal,16.07,Torches,Equipment / Furniture / Materials
26/07/2021,Culture & Environment Services,Paypal,41.25,Pride Flags,Equipment / Furniture / Materials
29/07/2021,Culture & Environment Services,Paypal,58.32,Emergency Service Day Flags,Equipment / Furniture / Materials
02/08/2021,Culture & Environment Services,Paypal,118.95,Union & St George Flags,Equipment / Furniture / Materials
16/08/2021,Culture & Environment Services,Paypal,15.34,Hazard Tape,Equipment / Furniture / Materials
17/08/2021,Culture & Environment Services,Paypal,82.08,Racking and fixing for WC Ramp - Market Van,Equipment / Furniture / Materials
18/08/2021,Culture & Environment Services,Paypal,452.33,Eco plugs drill bit and 5lrs roundup,Materials and Supplies - Miscellaneous
26/07/2021,Culture & Environment Services,Pirtek Ipswich,68.80,Oil - CHANTRY HUB,Parks Vehicle Costs
12/07/2021,Culture & Environment Services,Premier Farnell,206.79,Par Can Bulbs and Lenses,Equipment / Furniture / Materials
16/08/2021,Culture & Environment Services,Premier Inn44010655,94.00,HOTEL BOOKING,Training Expenses
17/08/2021,Culture & Environment Services,Premier Inn44010655,38.00,Hotel expense,Training Expenses
19/08/2021,Culture & Environment Services,Ridgeons Atc Ipswich,144.35,Hammer drill - PLAY AREA INSPECTOR,Equipment / Furniture / Materials
19/08/2021,Culture & Environment Services,Ridgeons Atc Ipswich,129.00,Membrane for the path at OCP,Miscellaneous Stock  - Purchases
10/05/2021,Culture & Environment Services,Sainsburys S/mkt,115.87,Food for elections,Catering/Beverages
10/05/2021,Culture & Environment Services,Sainsburys S/mkts,54.33,Food for elections,Catering/Beverages
18/08/2021,Culture & Environment Services,Sainsburys S/mkts,2.50,Bin Liners for Events,Equipment / Furniture / Materials
28/07/2021,Culture & Environment Services,Sainsburys S/mkts,8.48,Milk & coffee for Waste Services,Materials and Supplies - Miscellaneous
04/08/2021,Culture & Environment Services,Sainsburys S/mkts,2.72,Milk for Waste Services,Materials and Supplies - Miscellaneous
17/08/2021,Culture & Environment Services,Sainsburys S/mkts,2.72,Milk for Waste Services,Materials and Supplies - Miscellaneous
23/08/2021,Culture & Environment Services,Sainsburys S/mkts,0.91,Milk for Waste Services,Materials and Supplies - Miscellaneous
26/08/2021,Culture & Environment Services,Sainsburys S/mkts,13.33,"Glasses x 4, Household Item x 1",Materials and Supplies - Miscellaneous
22/07/2021,Culture & Environment Services,Sainsburys S/mkts,12.67,Thank you gifts,Miscellaneous Expenses
09/07/2021,Culture & Environment Services,Screwfix Dir Ltd,4.99,Resin Gun,Equipment / Furniture / Materials
22/07/2021,Culture & Environment Services,Screwfix Dir Ltd,30.35,Resin,Equipment / Furniture / Materials
12/08/2021,Culture & Environment Services,Screwfix Dir Ltd,12.48,2 x Clear Gazebo Repair Tape,Equipment / Furniture / Materials
17/08/2021,Culture & Environment Services,Screwfix Dir Ltd,36.48,Jacksaw/cable reel - Play Area Inspector,Equipment / Furniture / Materials
20/08/2021,Culture & Environment Services,Screwfix Dir Ltd,9.97,Brackets - PLAY AREA INSPECTOR,Equipment / Furniture / Materials
23/08/2021,Culture & Environment Services,Screwfix Dir Ltd,52.45,"5 x Event Snips, 1 x Fingerless Gloves",Equipment / Furniture / Materials
12/07/2021,Culture & Environment Services,Screwfix Dir Ltd,42.47,Material for Bench installation - CCP,Miscellaneous Stock  - Purchases
14/07/2021,Culture & Environment Services,Screwfix Dir Ltd,9.28,Brushes - WOOD TREATMENT CCP,Miscellaneous Stock  - Purchases
26/07/2021,Culture & Environment Services,Screwfix Dir Ltd,14.16,Line Marker - ORWELL PATH INSTALL,Miscellaneous Stock  - Purchases
19/08/2021,Culture & Environment Services,Screwfix Dir Ltd,49.99,SkateSuffolk event materials,Miscellaneous Stock  - Purchases
27/08/2021,Culture & Environment Services,Screwfix Dir Ltd,3.16,BOLTS FOR BENCH INSTALL,Miscellaneous Stock  - Purchases
16/08/2021,Culture & Environment Services,Screwfix Direct,15.82,PPE for Park Patrol,Equipment / Furniture / Materials
04/08/2021,Culture & Environment Services,Screwfix Direct,27.29,Black cable ties 5 x 100 pk,Materials and Supplies - Miscellaneous
26/07/2021,Culture & Environment Services,Scribbler,7.91,REDACTED,Stationery
16/08/2021,Culture & Environment Services,Scribbler,3.37,Leavers card for Spalding,Stationery
05/08/2021,Culture & Environment Services,Sharman Caravans Limited,8.75,Accessories x 30,Materials and Supplies - Miscellaneous
25/08/2021,Culture & Environment Services,Shell Ranelagh 390,8.66,Ad Blue - LANDSCAPE TEAM,Parks Vehicle Costs
10/05/2021,Culture & Environment Services,Sportsdirect.Com,72.47,Wet weather PPE,Equipment / Furniture / Materials
20/07/2021,Culture & Environment Services,Sproughton Garden Machine,45.83,Various Tools - CHANTRY HUB,Materials and Supplies - Miscellaneous
10/08/2021,Culture & Environment Services,Sproughton Garden Machine,48.33,Strimmer Heads - CHANTRY HUB,Materials and Supplies - Miscellaneous
04/08/2021,Culture & Environment Services,Starttraffic.Uk,108.80,Fencing Spanners for Heras Fencing.,Miscellaneous Stock  - Purchases
02/08/2021,Culture & Environment Services,Stationery Office Book,6.25,HSE Booklets,Equipment / Furniture / Materials
16/07/2021,Culture & Environment Services,Suffolk Fastener (Ipsw,8.56,Bolts for swing,Equipment / Furniture / Materials
10/08/2021,Culture & Environment Services,Suffolk Fastener (Ipsw,28.89,Various Fasteners - PLAY AREA INSPECTOR,Equipment / Furniture / Materials
19/08/2021,Culture & Environment Services,Suffolk Fastener (Ipsw,10.72,Coach Bolts - PLAY AREA INSPECTOR,Equipment / Furniture / Materials
26/08/2021,Culture & Environment Services,Tesco Stores 5603,2.87,Milk for Waste Services,Materials and Supplies - Miscellaneous
23/07/2021,Culture & Environment Services,Tesco Stores Ltd,1.92,Milk for Waste Services,Materials and Supplies - Miscellaneous
02/08/2021,Culture & Environment Services,The Range,66.61,Garden Maintenance Tools - PVA,Equipment / Furniture / Materials
12/08/2021,Culture & Environment Services,The Range,20.82,Knapsack sprayer for weed killing,Equipment / Furniture / Materials
16/08/2021,Culture & Environment Services,The Windscreen Co,48.00,CHIP REPAIR FOR AX69 GKF,Direct Transport Costs
24/08/2021,Culture & Environment Services,The Windscreen Co,48.00,CHIP REPAIR FOR AV13 OPL,Direct Transport Costs
05/08/2021,Culture & Environment Services,Timpson Ltd,17.50,Spare Abus Keys,Equipment / Furniture / Materials
09/07/2021,Culture & Environment Services,Toolstation Ltd,12.48,Cutting Disc,Equipment / Furniture / Materials
06/08/2021,Culture & Environment Services,Tracmaster Ltd,633.20,BCS mower spares,Equipment / Furniture / Materials
23/08/2021,Culture & Environment Services,Travis Perkins,21.33,Resin - PLAY AREA INSPECTOR,Equipment / Furniture / Materials
03/08/2021,Culture & Environment Services,Travis Perkins Trading,737.40,Plywood for recovering Regent stage,Materials and Supplies - Miscellaneous
16/08/2021,Culture & Environment Services,Trp7 Ltd,195.00,Wheelchair Ramp for Market,Equipment / Furniture / Materials
22/07/2021,Culture & Environment Services,Victoria Nurseries,81.67,COMPOST - Christchurch Hub,Materials and Supplies - Miscellaneous
04/08/2021,Culture & Environment Services,Wickes Ipswich,15.00,2x 1 Tonne builders bag - CHANTRY HUB,Materials and Supplies - Miscellaneous
16/07/2021,Culture & Environment Services,Wickes Ipswich,12.50,Postcrete - GOALPOSTS WHITEHOUSE,Miscellaneous Stock  - Purchases
29/07/2021,Culture & Environment Services,Workgloves.Co.Uk,58.88,work gloves,Equipment / Furniture / Materials
20/07/2021,Culture & Environment Services,Www.Banneruk.Com,11.76,Stationery for Waste Services,Stationery
27/07/2021,Culture & Environment Services,Www.Banneruk.Com,15.74,Stationery for Waste Services,Stationery
12/08/2021,Culture & Environment Services,Www.Banneruk.Com,8.51,Stationery for Waste Services,Stationery
23/08/2021,Culture & Environment Services,Www.Banneruk.Com,0.19,Stationery for Waste Services,Stationery
23/08/2021,Culture & Environment Services,Www.Banneruk.Com,32.67,Stationery for Waste Services,Stationery
11/08/2021,Culture & Environment Services,Www.Firstfence.Co.Uk,"2,222.00",Crowd Barrier fencing - PARKS,Miscellaneous Stock  - Purchases
23/08/2021,Culture & Environment Services,Www.Fta.Co.Uk,55.26,NO SMOKING STICKERS & TACHOGRAPH ROLLS,Direct Transport Costs
30/07/2021,Culture & Environment Services,Www.Graniteworkwear.Com,72.76,Hi Vis XL work tops,Clothing / Uniform & Laundry
21/05/2021,Culture & Environment Services,Zendesk Inc,72.30,Ticketing Helpdesk Monthly Fee,Subscriptions - Service Related
21/06/2021,Culture & Environment Services,Zendesk Inc,73.91,Ticketing Helpdesk Monthly Fee,Subscriptions - Service Related
20/07/2021,Culture & Environment Services,Zendesk Inc,74.65,Ticketing Helpdesk Monthly Fee,Subscriptions - Service Related
26/08/2021,Development,A C Leigh,232.00,key cards,Premises Costs - Miscellaneous
09/08/2021,Development,Aldi 776 104,7.25,milk,Subsistence & Conference/Seminar / Event Expenses
23/08/2021,Development,B & Q 1315,100.37,redecs,Premises Costs - Miscellaneous
18/08/2021,Development,Ballantines Blinds And Aw,35.00,blind repairs,Reactive Repairs
23/07/2021,Development,Geodesys,181.60,Property Searches,Capital Expenditure
18/08/2021,Development,Horizon Environment Sr,58.00,pest control flys,Premises Costs - Miscellaneous
13/08/2021,Development,Icsa Services Ltd,350.00,JEC subs,Employee Expenses
22/07/2021,Development,Ncx*utilitysearch,218.04,Property Searches,Capital Expenditure
28/07/2021,Development,Rbi Qss Subs,439.00,renewal EG,Publications - Purchase
31/08/2021,Development,Www Cbuilde Com,290.00,21/22 Membership,Employee Expenses
31/08/2021,Development,Www Cbuilde Com,225.00,21/22 Membership ,Employee Expenses
31/08/2021,Development,Www Cbuilde Com,205.00,21/22 Corporate Membership,Non Contracted_Professional Services
09/08/2021,Development,"Www,eastsuffolk.Gov.Uk",288.00,Partnership Inspections,Non Contracted_Professional Services
27/08/2021,Development,"Www,eastsuffolk.Gov.Uk",80.00,Partnership Inspections,Non Contracted_Professional Services
30/08/2021,Development,Www.Test-Meter.Co.Uk,148.20,CO2 monitor for ventilation check,Reactive Repairs
04/08/2021,Finance & Revenues,Royal Mail Charges,1.25,Royal Mail Surcharges,Postage Costs
04/08/2021,Finance & Revenues,Royal Mail Charges,1.25,Royal Mail Surcharges,Postage Costs
04/08/2021,Finance & Revenues,Royal Mail Charges,1.25,Royal Mail Surcharges,Postage Costs
04/08/2021,Finance & Revenues,Royal Mail Charges,1.67,Royal Mail Surcharges,Postage Costs
09/08/2021,Finance & Revenues,Royal Mail Charges,1.25,Royal Mail Surcharge,Postage Costs
25/08/2021,Finance & Revenues,Royal Mail Charges,1.50,Royal Mail surcharges for postal not paid by customer,Postage Costs
25/08/2021,Finance & Revenues,Royal Mail Charges,1.50,Royal Mail surcharges for postal not paid by customer,Postage Costs
25/08/2021,Finance & Revenues,Royal Mail Charges,2.00,Royal Mail surcharges for postal not paid by customer,Postage Costs
25/08/2021,Finance & Revenues,Royal Mail Charges,3.10,Royal Mail surcharges for postal not paid by customer,Postage Costs
27/08/2021,Finance & Revenues,Royal Mail Charges,1.25,Royal Mail Postal surcharges.,Postage Costs
10/08/2021,Finance & Revenues,Service Fees - Fraedom Pty Ltd,383.15,Fraedom Card Fees 01/07/21 to 31/07/21,Computer Software - Maintenance
18/08/2021,Finance & Revenues,Southend County,325.50,Council Tax and NDR summons,Legal Services & Fees
30/08/2021,Finance & Revenues,Southend County,207.00,CTAX and NDR summons,Legal Services & Fees
20/08/2021,Finance & Revenues,Www.Aat-Org.Uk,167.00,AAT Subscription,Employee Expenses
19/08/2021,Finance & Revenues,Www.Irrv.Org.Uk,185.00,Introduction to Council Tax ,Training/Courses Running Costs
16/07/2021,Housing & Community Services,Ajproducts.Co.Uk,"1,487.00",New Stores COSHH Storage shelving,Equipment / Furniture / Materials
03/08/2021,Housing & Community Services,Amazon Prime,7.99,Amazon Prime,Equipment / Furniture / Materials
20/08/2021,Housing & Community Services,Amazon.Co.Uk,37.62,Skype Handsets,Computer Equipment - Purchase
13/08/2021,Housing & Community Services,Amznmktplace,72.91,IT equipment,Computer Equipment - Purchase
29/07/2021,Housing & Community Services,Amznmktplace,29.16,Fire Cabinet Document Holder 4142214,Materials and Supplies - Miscellaneous
23/08/2021,Housing & Community Services,Amznmktplace,7.12,Barry Roper 4113874 3Mtr Hose,Materials and Supplies - Miscellaneous
23/08/2021,Housing & Community Services,Amznmktplace,19.80,4 x Fire Keys for RSI workers,Specific Campaigns / Projects expenditure
04/08/2021,Housing & Community Services,Argos Ltd,10.00,items for Afghan resettlement scheme,Specific Campaigns / Projects expenditure
11/08/2021,Housing & Community Services,Argos Ltd,-7.00,Refund for item ordered but not supplied,Specific Campaigns / Projects expenditure
12/08/2021,Housing & Community Services,Argos Ltd,479.92,8 mini cookers for RS accom money paid back by Ropes Trust,Specific Campaigns / Projects expenditure
19/08/2021,Housing & Community Services,Argos Ltd,41.99,items for ARAP scheme,Specific Campaigns / Projects expenditure
23/08/2021,Housing & Community Services,Argos Ltd,30.00,Key safe for Housing First tenant,Specific Campaigns / Projects expenditure
24/08/2021,Housing & Community Services,Argos Ltd,15.50,items for ARAP scheme home set up,Specific Campaigns / Projects expenditure
24/08/2021,Housing & Community Services,Argos Ltd,15.00,purchases for ARAP scheme home set up,Specific Campaigns / Projects expenditure
12/08/2021,Housing & Community Services,Booker Limited Ipswich,5.74,Water for emergency store,Materials and Supplies - Miscellaneous
28/06/2021,Housing & Community Services,Cpw Locksmiths And Securi,120.00,Lock and Keys,HRA Special Repairs & Maintenance
29/06/2021,Housing & Community Services,Cpw Locksmiths And Securi,80.00,repair service ,HRA Special Repairs & Maintenance
23/07/2021,Housing & Community Services,Cpw Locksmiths And Securi,130.00,Drying room Wingate house supply spare lock for door,HRA Special Repairs & Maintenance
28/07/2021,Housing & Community Services,Cpw Locksmiths And Securi,145.00,supply spare cylinder on master key,HRA Special Repairs & Maintenance
30/07/2021,Housing & Community Services,Cpw Locksmiths And Securi,200.00,Reydon Hse service 3 locks/repairs and 1 replacement,HRA Special Repairs & Maintenance
06/08/2021,Housing & Community Services,Cpw Locksmiths And Securi,321.00,repair/replace/renew lock/keys to sheltered properties,HRA Special Repairs & Maintenance
05/08/2021,Housing & Community Services,Dunelm,251.80,blinds and curtains for Afghan resettlement scheme,Specific Campaigns / Projects expenditure
18/08/2021,Housing & Community Services,Dunelm,19.50,Net curtains for Navigator client,Specific Campaigns / Projects expenditure
05/08/2021,Housing & Community Services,Ipswich Furniture Proj,981.00,furniture for Afghan resettlement scheme,Specific Campaigns / Projects expenditure
15/06/2021,Housing & Community Services,Possessionclaim.Go,121.00,possession claim on line,Legal Services & Fees
01/07/2021,Housing & Community Services,Possessionclaim.Go,355.00,possession claim on line,Legal Services & Fees
01/07/2021,Housing & Community Services,Possessionclaim.Go,355.00,possession claim on line,Legal Services & Fees
23/07/2021,Housing & Community Services,Possessionclaim.Go,355.00,possession claim on line,Legal Services & Fees
27/07/2021,Housing & Community Services,Possessionclaim.Go,121.00,warrant for possession,Legal Services & Fees
23/08/2021,Housing & Community Services,Premier Farnell,64.26,Fluke Probe Tester,Equipment / Furniture / Materials
27/08/2021,Housing & Community Services,Screwfix Dir Ltd,98.93,8x extension reel for hireshop PW89-96,Equipment / Furniture / Materials
11/08/2021,Housing & Community Services,Screwfix Direct,63.31,Wood Jig for woodmill/Hireshop,Equipment / Furniture / Materials
26/08/2021,Housing & Community Services,Screwfix Direct,24.73,Hire shop extensions Reels PW087 & Pw088,Equipment / Furniture / Materials
20/07/2021,Housing & Community Services,Screwfix Direct,39.12,key safes x 3 for schemes ,HRA Special Repairs & Maintenance
23/08/2021,Housing & Community Services,Screwfix Direct,16.66,Post Box,HRA Special Repairs & Maintenance
27/07/2021,Housing & Community Services,Security Industry,158.33,SIA,Licences & Other Fees
30/07/2021,Housing & Community Services,Security Industry,158.33,SIA,Licences & Other Fees
04/08/2021,Housing & Community Services,Security Industry,158.33,SIA,Licences & Other Fees
02/07/2021,Housing & Community Services,Southend County,20.00,gas warrant,Legal Services & Fees
21/05/2021,Housing & Community Services,Suffolk County Council,11.00,birth certificate for vulnerable tenant as form of ID,Housing  - other Costs
11/08/2021,Housing & Community Services,T J Morris Ltd,22.16,various scheme office items,Stationery
24/08/2021,Housing & Community Services,Tesco Pfs 3724,8.12,Unleaded fuel for hand tools  2x5ltr cans,Equipment / Furniture / Materials
03/08/2021,Housing & Community Services,Tesco Store 2748,53.96,Items for Afghan resettlement scheme,Specific Campaigns / Projects expenditure
11/08/2021,Housing & Community Services,Tesco Store 2877,43.33,comms books sheltered schemes x 12,Stationery
26/07/2021,Housing & Community Services,Wh & Db Doole Ta B,143.95,15 Bell Brushes,Materials and Supplies - Miscellaneous
26/08/2021,Housing & Community Services,Www.Banneruk.Com,16.24,Stationery,Stationery
27/08/2021,Housing & Community Services,Www.Banneruk.Com,98.59,Stationery,Stationery
16/08/2021,Housing & Community Services,Www.Tonystextiles.Co.U,19.95,"8 mini cookers for RS accom, money paid back by Ropes Trust",Specific Campaigns / Projects expenditure
19/08/2021,People & Governance,Amazon.Co.Uk,227.00,REDACTED,Specific Campaigns / Projects expenditure
25/08/2021,People & Governance,Amznmktplace,"1,481.63",Replacement UPS batteries,Computer Equipment - Purchase
13/08/2021,People & Governance,Amznmktplace,10.82,Headphone accessories,Telecommunication Costs - Business Phones
16/08/2021,People & Governance,Back Market Inc.,207.49,Automated Reception,Computer Equipment - Purchase
19/08/2021,People & Governance,Cartridgepeople.Com,104.67,Councillor Ink Cartridges,Computer Consumables and other Minor IT costs
20/08/2021,People & Governance,Cartridgepeople.Com,30.75,Councillor Ink Cartridges,Computer Consumables and other Minor IT costs
05/08/2021,People & Governance,Cba*tenable,"2,177.78",Nessus Security Scanner,Non Contracted_Professional Services
25/08/2021,People & Governance,Cbt Nuggets Llc,44.65,IT Training,Training Expenses
16/08/2021,People & Governance,Dri*,34.69,PDFSoftware,Computer Software - Purchase
25/08/2021,People & Governance,Highstreetvouchers,59.00,REDACTED,Specific Campaigns / Projects expenditure
25/08/2021,People & Governance,Highstreetvouchers,100.00,REDACTED,Specific Campaigns / Projects expenditure
25/08/2021,People & Governance,Highstreetvouchers,100.00,REDACTED,Specific Campaigns / Projects expenditure
25/08/2021,People & Governance,Highstreetvouchers,100.00,REDACTED,Specific Campaigns / Projects expenditure
16/08/2021,People & Governance,Msft *,304.62,Azure sentinel costs,Computer Equipment - Purchase
09/08/2021,People & Governance,Msft * E0200fbxp6,22.50,Power BI Licences,Computer Software - Purchase
16/08/2021,People & Governance,Office Circle,138.21,Reception printer,Computer Equipment - Purchase
26/08/2021,People & Governance,Office Circle,-138.21,Reception Printer Refund,Computer Equipment - Purchase
18/08/2021,People & Governance,Workpass.Co.Uk,12.00,Reference from Axa Insurance ,Recruitment Costs
04/08/2021,People & Governance,Www.4gon.Co.Uk,128.95,Network Equipment,Capital Expenditure
16/08/2021,People & Governance,Zoom.Gbp,23.98,Zoom Subscription,Computer Consumables and other Minor IT costs
26/07/2021,Sports & Programmes,Amazon.Co.Uk,14.96,Hook and loop set,Equipment / Furniture / Materials
26/07/2021,Sports & Programmes,Amazon.Co.Uk,23.37,sanitiser,Equipment / Furniture / Materials
10/08/2021,Sports & Programmes,Amazon.Co.Uk,83.32,wet vac,Equipment / Furniture / Materials
03/08/2021,Sports & Programmes,Amznmktplace,44.17,Disinfectant cleaning wipes for HEARS vehicles,Cleaning Supplies
09/08/2021,Sports & Programmes,Amznmktplace,774.75,chlorine,Cleaning Supplies
13/08/2021,Sports & Programmes,Amznmktplace,4.00,Rust remover for spin bike monitors,Cleaning Supplies
22/07/2021,Sports & Programmes,Amznmktplace,31.62,clipboards and ringbinders,Equipment / Furniture / Materials
28/07/2021,Sports & Programmes,Amznmktplace,38.87,goal nets,Equipment / Furniture / Materials
28/07/2021,Sports & Programmes,Amznmktplace,38.87,goal nets,Equipment / Furniture / Materials
28/07/2021,Sports & Programmes,Amznmktplace,38.88,goal nets,Equipment / Furniture / Materials
03/08/2021,Sports & Programmes,Amznmktplace,7.49,Diary ,Equipment / Furniture / Materials
12/08/2021,Sports & Programmes,Amznmktplace,7.46,Foam covers for classes head mic,Equipment / Furniture / Materials
17/08/2021,Sports & Programmes,Amznmktplace,18.32,M8 lane rope bolts,Equipment / Furniture / Materials
19/08/2021,Sports & Programmes,Amznmktplace Amazon.Co.Uk,749.75,Sodium Hypochlorite,Cleaning Supplies
21/07/2021,Sports & Programmes,Amznmktplace Amazon.Co.Uk,2.73,Crafts equipment,Equipment / Furniture / Materials
21/07/2021,Sports & Programmes,Amznmktplace Amazon.Co.Uk,3.29,Crayons,Equipment / Furniture / Materials
22/07/2021,Sports & Programmes,Amznmktplace Amazon.Co.Uk,3.33,Crafts equipment,Equipment / Furniture / Materials
22/07/2021,Sports & Programmes,Amznmktplace Amazon.Co.Uk,10.16,Rollerskating insoles,Equipment / Furniture / Materials
22/07/2021,Sports & Programmes,Amznmktplace Amazon.Co.Uk,10.16,Rollerskating insoles,Equipment / Furniture / Materials
23/07/2021,Sports & Programmes,Amznmktplace Amazon.Co.Uk,9.99,Activity CD and crafts equipment,Equipment / Furniture / Materials
23/07/2021,Sports & Programmes,Amznmktplace Amazon.Co.Uk,17.14,Activity CD and crafts equipment,Equipment / Furniture / Materials
26/07/2021,Sports & Programmes,Amznmktplace Amazon.Co.Uk,152.74,"drawstring bags, wipes, 1st aid kits",Equipment / Furniture / Materials
05/08/2021,Sports & Programmes,Argos Ltd,5.00,HDMI Cable,Computer Consumables and other Minor IT costs
04/08/2021,Sports & Programmes,Argos Ltd,8.33,Stereo cable (WSC) and doormat (GSC),Equipment / Furniture / Materials
04/08/2021,Sports & Programmes,Argos Ltd,15.83,Stereo cable (WSC) and doormat (GSC),Equipment / Furniture / Materials
22/07/2021,Sports & Programmes,Asda Superstore,11.99,Show spray for skates and permanent markers,Equipment / Furniture / Materials
02/08/2021,Sports & Programmes,B & Q 1315,14.17,Purchase of box and bottles for customer cleaning box,Cleaning Supplies
29/07/2021,Sports & Programmes,B & Q 1315,73.33,Garden tools to tidy car park,Equipment / Furniture / Materials
10/08/2021,Sports & Programmes,B & Q 1315,13.33,Flooring for squash court,Equipment / Furniture / Materials
10/08/2021,Sports & Programmes,B & Q 1315,163.33,Flooring for squash court,Equipment / Furniture / Materials
07/07/2021,Sports & Programmes,B&m 591 - Carr Road,14.38,Washing powder and ant killer,Cleaning Supplies
16/07/2021,Sports & Programmes,B&m 591 - Carr Road,6.33,Batteries,Cleaning Supplies
14/07/2021,Sports & Programmes,B&m 591 - Carr Road,3.00,Battery for smoke alarm,Equipment / Furniture / Materials
22/07/2021,Sports & Programmes,B&m 591 - Carr Road,11.65,Batteries,Equipment / Furniture / Materials
05/08/2021,Sports & Programmes,B&q Direct,26.67,Trial flooring for squash court,Equipment / Furniture / Materials
06/08/2021,Sports & Programmes,B&q Direct,133.33,Part 1 of Flooring for squash court,Equipment / Furniture / Materials
04/08/2021,Sports & Programmes,Christines Florist,29.17,Flowers for compassionate reasons,Equipment / Furniture / Materials
13/08/2021,Sports & Programmes,Defib Pad,64.50,Purchase of Junior De Fib Pads as expiry reached on our curr,Equipment / Furniture / Materials
20/08/2021,Sports & Programmes,E-Bath,32.90,2 x siphons for disabled toilet,Equipment / Furniture / Materials
02/08/2021,Sports & Programmes,Facebk *45zzg6x7j2,78.16,Social media advertising,Advertising/Publicity
02/08/2021,Sports & Programmes,Facebk *45zzg6x7j2,120.52,Social media advertising,Advertising/Publicity
02/08/2021,Sports & Programmes,Facebk *45zzg6x7j2,284.65,Social media advertising,Advertising/Publicity
09/08/2021,Sports & Programmes,Facebk *t96dp6x7j2,83.33,Social media advertising,Advertising/Publicity
09/08/2021,Sports & Programmes,Facebk *t96dp6x7j2,65.97,Social media advertising,Advertising/Publicity
05/08/2021,Sports & Programmes,Felgains,109.00,Disabled Hoist - Controller by Felgains in emergency,Equipment / Furniture / Materials
05/08/2021,Sports & Programmes,Firstaid4less.Co.Uk,233.70,First Aid Equipment for LP replenishment,Equipment / Furniture / Materials
11/08/2021,Sports & Programmes,Machine Mart Web,28.63,drill water pump,Equipment / Furniture / Materials
12/07/2021,Sports & Programmes,Mailchimp,500.58,MailChimp email marketing,Subscriptions - Service Related
26/07/2021,Sports & Programmes,Mailchimp,226.47,MailChimp email marketing,Subscriptions - Service Related
12/08/2021,Sports & Programmes,Mailchimp,511.04,MailChimp email marketing,Subscriptions - Service Related
10/08/2021,Sports & Programmes,Millennium Pest Control,120.00,Fly spraying back stage,Cleaning Supplies
12/08/2021,Sports & Programmes,Morplan.Com,40.85,pricing guns,Goods for Resale - Equipment
03/08/2021,Sports & Programmes,Post Office Counter,158.33,SIA License Application for Controller 21,Licences & Other Fees
26/07/2021,Sports & Programmes,Rs Components,40.17,Thermometer for main hall and velcro tape.,Equipment / Furniture / Materials
18/08/2021,Sports & Programmes,Rs Components,17.41,2 x funnels for hypo filling,Equipment / Furniture / Materials
19/07/2021,Sports & Programmes,Screwfix Dir Ltd,11.22,screws and adhesive,Equipment / Furniture / Materials
22/07/2021,Sports & Programmes,Screwfix Direct,5.82,Batteries for sports equipment,Equipment / Furniture / Materials
23/08/2021,Sports & Programmes,Security Industry,158.33,SIA License Renewal for Controller 65,Licences & Other Fees
15/07/2021,Sports & Programmes,Shopify* 114398917,21.63,Made in Suffolk online shop,Financial Fees & Services
16/08/2021,Sports & Programmes,Shopify* 117036093,21.65,Made in Suffolk online shop,Financial Fees & Services
10/08/2021,Sports & Programmes,Signs For You Ltd,34.80,Circle plaques for rows,Equipment / Furniture / Materials
06/08/2021,Sports & Programmes,Sp * Realkleen Ltd,137.50,Hypo - 11 x 10Litre Carboys of Hypo - Emergency purchase,Cleaning Supplies
21/07/2021,Sports & Programmes,Sp * Rlss UK Ent Packs,763.33,training aids,Training Expenses
17/08/2021,Sports & Programmes,"Sprout Social, Inc",707.38,Social media management,Advertising/Publicity
12/08/2021,Sports & Programmes,Stringerswo,144.96,retail items,Goods for Resale - Equipment
12/08/2021,Sports & Programmes,Stringerswo,144.96,retail items,Goods for Resale - Equipment
02/08/2021,Sports & Programmes,Train With Caws,84.00,Long Covid Course - Train With Caws,Specific Campaigns / Projects expenditure
10/08/2021,Sports & Programmes,Train With Caws,-84.00,Refund - Long Covid Course,Specific Campaigns / Projects expenditure
10/08/2021,Sports & Programmes,Train With Caws,-84.00,Refund - Long Covid Course,Specific Campaigns / Projects expenditure
19/08/2021,Sports & Programmes,Tvlicensing.Co.Uk,132.50,TV Licence,Licences & Other Fees
07/07/2021,Sports & Programmes,Wessex Cleaning Equipment,41.65,Hand towel holder for shower in dressing room,Equipment / Furniture / Materials
22/07/2021,Sports & Programmes,Wilko Retail Limited,9.00,Adhesive and gun for flooring in stage toilets,Equipment / Furniture / Materials
23/07/2021,Sports & Programmes,Www.Bunzlcleaningsuppl,141.07,Cleaning products Ransomes,Cleaning Supplies
09/08/2021,Sports & Programmes,Www.Defibshop.Co.Uk,75.00,child defib pads for GSC and WSC,Materials and Supplies - Miscellaneous
09/08/2021,Sports & Programmes,Www.Defibshop.Co.Uk,75.00,child defib pads for GSC and WSC,Materials and Supplies - Miscellaneous
06/08/2021,Sports & Programmes,Www.Reed.Co.Uk,150.00,Proofreading/Editing course x 4 via Reed,Training Expenses
10/08/2021,Sports & Programmes,Www.Stannp.Com,"1,576.24",Hairspray Mailing,Advertising/Publicity
,,,"39,744.68",,
